fUST/lending_fUST_20240817
["ID","MTS","AMOUNT","RATE_DAILY","PERIOD"]
[335147098,1723890713977,-500.0,0.0002739,2]
[335147099,1723890713989,-500.0,0.0002739,2]
[335147100,1723890714000,-500.0,0.0002739,2]
[335147101,1723890714012,-1215.121657,0.0002739,7]
[335147102,1723890714024,-500.0,0.0002739,2]
[335147103,1723890714036,-521.11,0.0002739,2]
[335147104,1723890714049,-500.0,0.0002739,2]
[335147105,1723890714065,-1215.121657,0.0002739,7]
[335147106,1723890714077,-500.0,0.0002739,2]
[335147107,1723890714088,-500.0,0.0002739,2]
[335147108,1723890714099,-500.0,0.0002739,2]
[335147109,1723890714111,-500.0,0.0002739,2]
[335147110,1723890714122,-391.2441703,0.0002739,2]
[335147111,1723890714135,-500.0,0.0002739,2]
[335147112,1723890714147,-775.16,0.0002739,2]
[335147113,1723890714158,-500.0,0.0002739,2]
[335147114,1723890714169,-571.1,0.0002739,2]
[335147115,1723890714180,-500.0,0.0002739,2]
[335147116,1723890714191,-500.0,0.0002739,2]
[335147117,1723890714204,-500.0,0.0002739,2]
[335147118,1723890714216,-593.00086948,0.0002739,2]
[335147119,1723890714227,-668.62,0.0002739,2]
[335147120,1723890714237,-500.0,0.0002739,2]
[335147121,1723890714248,-500.0,0.0002739,2]
[335147122,1723890714258,-500.0,0.0002739,2]
[335147123,1723890714269,-500.0,0.0002739,2]
[335147124,1723890714280,-731.12,0.0002739,2]
[335147125,1723890714291,-500.0,0.0002739,2]
[335147126,1723890714301,-632.17,0.0002739,2]
[335147127,1723890714311,-500.0,0.0002739,2]
[335147128,1723890714321,-500.0,0.0002739,2]
[335147129,1723890714331,-593.02,0.0002739,2]
[335147130,1723890714342,-586.07122203,0.0002739,2]
[335147131,1723890714352,-500.0,0.0002739,2]
[335147132,1723890714361,-656.84,0.0002739,2]
[335147133,1723890714371,-500.0,0.0002739,2]
[335147134,1723890714382,-633.28,0.0002739,2]
[335147135,1723890714392,-500.0,0.0002739,2]
[335147136,1723890714402,-508.84450733,0.0002739,2]
[335147137,1723890714412,-500.0,0.0002739,2]
[335147138,1723890714423,-500.0,0.0002739,2]
[335147139,1723890714433,-521.1,0.0002739,2]
[335147140,1723890714443,-500.0,0.0002739,2]
[335147141,1723890714453,-500.0,0.0002739,2]
[335147142,1723890714464,-500.0,0.0002739,2]
[335147143,1723890714474,-500.0,0.0002739,2]
[335147144,1723890714484,-500.0,0.0002739,2]
[335147145,1723890714494,-500.0,0.0002739,2]
[335147146,1723890714504,-500.0,0.0002739,2]
[335147147,1723890714513,-500.0,0.0002739,2]
[335147148,1723890714524,-500.0,0.0002739,2]
[335147149,1723890714533,-500.0,0.0002739,2]
[335147150,1723890714543,-500.0,0.0002739,2]
[335147151,1723890714554,-764.51,0.0002739,2]
[335147152,1723890714564,-500.0,0.0002739,2]
[335147153,1723890714695,-500.0,0.0002739,2]
[335147154,1723890714706,-500.0,0.0002739,2]
[335147155,1723890714716,-500.0,0.0002739,2]
[335147156,1723890714725,-550.36082975,0.0002739,2]
[335147157,1723890714735,-625.26,0.0002739,2]
[335147158,1723890714745,-500.0,0.0002739,2]
[335147159,1723890714755,-625.29,0.0002739,2]
[335147160,1723890714765,-507.00336879,0.0002739,2]
[335147161,1723890714774,-500.0,0.0002739,2]
[335147162,1723890714784,-500.0,0.0002739,2]
[335147163,1723890714794,-500.0,0.0002739,2]
[335147164,1723890714804,-500.0,0.0002739,2]
[335147165,1723890714813,-500.0,0.0002739,2]
[335147166,1723890714823,-501.433027,0.00027396,2]
[335147167,1723890714833,-501.433027,0.00027396,2]
[335147168,1723890714843,-632.18771075,0.00027396,2]
[335147169,1723890714852,-505.86784141,0.00027396,2]
[335147170,1723890714862,-1302.46,0.00027396,2]
[335147171,1723890714871,-3815.52,0.00027396,2]
[335147172,1723890714881,-1463.19,0.00027396,2]
[335147173,1723890714891,-1313.81,0.00027396,2]
[335147174,1723890714901,-557.32,0.00027396,2]
[335147175,1723890714911,-4587.93,0.00027396,2]
[335147176,1723890714920,-1281.48,0.00027396,2]
[335147177,1723890714931,-1296.99,0.00027396,2]
[335147178,1723890714940,-1380.37,0.00027396,2]
[335147179,1723890714950,-500.0,0.00027396,2]
[335147180,1723890714960,-3297.99,0.00027396,2]
[335147181,1723890714970,-2369.1,0.00027396,2]
[335147182,1723890714980,-3259.07,0.00027396,2]
[335147183,1723890714989,-500.0,0.00027396,2]
[335147184,1723890714998,-500.0,0.00027396,2]
[335147185,1723890715008,-500.0,0.00027396,2]
[335147186,1723890715017,-500.0,0.00027396,2]
[335147187,1723890715026,-511.31741758,0.00027396,2]
[335147188,1723890715036,-2059.73,0.00027396,2]
[335147189,1723890715046,-558.53,0.00027396,2]
[335147190,1723890715058,-1089.27,0.00027396,2]
[335147191,1723890715067,-555.31672374,0.00027396,2]
[335147192,1723890715077,-4118.73,0.00027396,2]
[335147193,1723890715086,-537.86,0.00027396,2]
[335147194,1723890715095,-500.0,0.00027396,2]
[335147195,1723890715105,-500.0,0.00027397,2]
[335147196,1723890715114,-500.0,0.00027397,2]
[335147197,1723890715123,-500.65124568,0.00027397,2]
[335147198,1723890715132,-151.0,0.00027397,7]
[335147199,1723890715142,-500.0,0.00027397,2]
[335147200,1723890715151,-500.0,0.00027397,2]
[335147201,1723890715160,-500.0,0.00027397,2]
[335147202,1723890715170,-552.52766428,0.00027397,2]
[335147203,1723890715179,-500.0,0.00027397,2]
[335147204,1723890715188,-500.0,0.00027397,2]
[335147205,1723890715199,-500.0,0.00027397,2]
[335147206,1723890715208,-500.0,0.00027397,2]
[335147207,1723890715217,-500.0,0.00027397,2]
[335147208,1723890715227,-500.0,0.00027397,2]
[335147209,1723890715236,-500.0,0.00027397,2]
[335147210,1723890715245,-601.44808632,0.00027397,2]
[335147211,1723890715255,-504.90561609,0.00027397,2]
[335147212,1723890715264,-500.0,0.00027397,2]
[335147213,1723890715273,-500.0,0.00027397,2]
[335147214,1723890715282,-503.77957695,0.00027397,2]
[335147215,1723890715292,-500.0,0.00027397,2]
[335147216,1723890715301,-502.8567098,0.00027397,2]
[335147217,1723890715310,-500.0,0.00027397,2]
[335147218,1723890715320,-500.0,0.00027397,2]
[335147219,1723890715329,-500.0,0.00027397,2]
[335147220,1723890715339,-500.0,0.00027397,2]
[335147221,1723890715349,-504.54717516,0.00027397,2]
[335147222,1723890715358,-500.0,0.00027397,2]
[335147223,1723890715368,-500.0,0.00027397,2]
[335147224,1723890715377,-500.0,0.00027397,2]
[335147225,1723890715387,-500.0,0.00027397,2]
[335147226,1723890715396,-612.47905561,0.00027397,2]
[335147227,1723890715406,-500.0,0.00027397,2]
[335147228,1723890715415,-528.08227156,0.00027397,2]
[335147229,1723890715425,-500.0,0.00027397,2]
[335147230,1723890715435,-501.99335732,0.00027397,2]
[335147231,1723890715445,-500.0,0.00027397,2]
[335147232,1723890715455,-500.0,0.00027397,2]
[335147233,1723890715465,-500.0,0.00027397,2]
[335147234,1723890715474,-510.622518,0.00027397,2]
[335147235,1723890715484,-505.98446191,0.00027397,2]
[335147236,1723890715494,-500.0,0.00027397,2]
[335147237,1723890715503,-205.01368498,0.00027397,2]
[335147238,1723890715512,-500.0,0.00027397,2]
[335147239,1723890715522,-500.0,0.00027397,2]
[335147240,1723890715532,-500.0,0.00027397,2]
[335147241,1723890715541,-500.0,0.00027397,2]
[335147242,1723890715550,-500.0,0.00027397,2]
[335147243,1723890715559,-500.0,0.00027397,2]
[335147244,1723890715569,-509.558402,0.00027397,2]
[335147245,1723890715578,-500.0,0.00027397,2]
[335147246,1723890715587,-500.0,0.00027397,2]
[335147247,1723890715597,-503.24011896,0.00027397,2]
[335147248,1723890715606,-500.0,0.00027397,2]
[335147249,1723890715616,-500.0,0.00027397,2]
[335147250,1723890715626,-500.0,0.00027397,2]
[335147251,1723890715636,-517.75727027,0.00027397,2]
[335147252,1723890715646,-507.68244506,0.00027397,2]
[335147253,1723890715656,-500.0,0.00027397,2]
[335147254,1723890715665,-561.21,0.00027397,2]
[335147255,1723890715675,-500.0,0.00027397,2]
[335147256,1723890715684,-500.0,0.00027397,2]
[335147257,1723890715694,-500.0,0.00027397,2]
[335147258,1723890715704,-1190.61,0.00027397,2]
[335147259,1723890715714,-1190.61,0.00027397,2]
[335147260,1723890715725,-1190.61,0.00027397,2]
[335147261,1723890715735,-1190.61,0.00027397,2]
[335147262,1723890715744,-1190.61,0.00027397,2]
[335147263,1723890715754,-1190.61,0.00027397,2]
[335147264,1723890715763,-1190.61,0.00027397,2]
[335147265,1723890715773,-1190.61,0.00027397,2]
[335147266,1723890715784,-1190.61,0.00027397,2]
[335147267,1723890715794,-1190.61,0.00027397,2]
[335147268,1723890715804,-1190.61,0.00027397,2]
[335147269,1723890715815,-1190.61,0.00027397,2]
[335147270,1723890715824,-1190.61,0.00027397,2]
[335147271,1723890715834,-1190.61,0.00027397,2]
[335147272,1723890715844,-500.0,0.00027397,2]
[335147273,1723890715854,-1190.61,0.00027397,2]
[335147274,1723890715864,-1190.61,0.00027397,2]
[335147275,1723890715874,-500.0,0.00027397,2]
[335147276,1723890715884,-1190.61,0.00027397,2]
[335147277,1723890715894,-500.0,0.00027397,2]
[335147278,1723890715904,-1190.61,0.00027397,2]
[335147279,1723890715915,-1190.61,0.00027397,2]
[335147280,1723890715925,-1190.61,0.00027397,2]
[335147281,1723890715935,-1190.61,0.00027397,2]
[335147282,1723890715946,-1190.61,0.00027397,2]
[335147283,1723890715958,-500.0,0.00027397,2]
[335147284,1723890715968,-1190.61,0.00027397,2]
[335147285,1723890715978,-1190.73682618,0.00027397,2]
[335147286,1723890715988,-500.0,0.00027397,2]
[335147287,1723890715997,-500.0,0.00027397,2]
[335147288,1723890716007,-500.0,0.00027397,2]
[335147289,1723890716017,-506.97821075,0.00027397,2]
[335147290,1723890716027,-500.0,0.00027397,2]
[335147291,1723890716037,-510.99985506,0.00027397,2]
[335147292,1723890716047,-150.0,0.00027397,2]
[335147293,1723890716060,-502.11669729,0.00027397,2]
[335147294,1723890716070,-500.0,0.00027397,2]
[335147295,1723890716080,-500.0,0.00027397,2]
[335147296,1723890716089,-500.0,0.00027397,2]
[335147297,1723890716101,-503.86843443,0.00027397,2]
[335147298,1723890716111,-502.97276873,0.00027397,2]
[335147299,1723890716121,-177.7198408,0.00027397,2]
[335147300,1723890716131,-500.0,0.00027397,2]
[335147301,1723890716141,-428.8070104,0.00027397,2]
[335147302,1723890716151,-500.0,0.00027397,2]
[335147303,1723890716161,-500.0,0.00027397,2]
[335147304,1723890716171,-511.74401053,0.00027397,2]
[335147305,1723890716180,-500.0,0.00027397,2]
[335147306,1723890716190,-500.0,0.00027397,2]
[335147307,1723890716199,-500.0,0.00027397,2]
[335147308,1723890716210,-500.0,0.00027397,2]
[335147309,1723890716225,-1000.0,0.00027397,2]
[335147310,1723890716235,-575.75,0.00027397,2]
[335147311,1723890716245,-528.48,0.00027397,2]
[335147312,1723890716255,-500.0,0.00027397,2]
[335147313,1723890716264,-500.0,0.00027397,2]
[335147314,1723890716275,-885.91,0.00027397,2]
[335147315,1723890716284,-501.433027,0.00027397,2]
[335147316,1723890716294,-501.433027,0.00027397,2]
[335147317,1723890716303,-501.433027,0.00027397,2]
[335147318,1723890716313,-501.433027,0.00027397,2]
[335147319,1723890716322,-385.44715817,0.00027397,2]
[335147320,1723890716332,-642.6,0.00027397,2]
[335147321,1723890716342,-529.2,0.00027397,2]
[335147322,1723890716352,-3128.21,0.00027397,2]
[335147323,1723890716362,-643.0,0.00027397,2]
[335147324,1723890716372,-500.55,0.00027397,2]
[335147325,1723890716382,-1197.09,0.00027397,2]
[335147326,1723890716392,-663.25,0.00027397,2]
[335147327,1723890716401,-553.57,0.00027397,2]
[335147328,1723890716411,-506.37401968,0.00027397,2]
[335147329,1723890716421,-833.32,0.00027397,2]
[335147330,1723890716430,-593.58,0.00027397,2]
[335147331,1723890716439,-635.22,0.00027397,2]
[335147332,1723890716448,-1678.22,0.00027397,2]
[335147333,1723890716459,-523.73,0.00027397,2]
[335147334,1723890716468,-500.0,0.00027397,2]
[335147335,1723890716478,-929.06,0.00027397,2]
[335147336,1723890716487,-1000.0,0.00027397,120]
[335147337,1723890716497,-1000.0,0.00027397,120]
[335147338,1723890716507,-1000.0,0.00027397,120]
[335147339,1723890716516,-1000.0,0.00027397,120]
[335147340,1723890716525,-1000.0,0.00027397,120]
[335147341,1723890716535,-325.06006547,0.00027397,120]
[335147342,1723890716544,-500.0,0.00027397,2]
[335147343,1723890716554,-500.0,0.00027397,2]
[335147344,1723890716564,-506.95346251,0.00027397,2]
[335147345,1723890716574,-5055.53,0.00027397,2]
[335147346,1723890716583,-726.16,0.00027397,2]
[335147347,1723890716592,-651.69,0.00027397,2]
[335147348,1723890716602,-1917.36,0.00027397,2]
[335147349,1723890716612,-500.0,0.00027397,2]
[335147350,1723890716622,-500.0,0.00027397,2]
[335147351,1723890716631,-785.84,0.00027397,2]
[335147352,1723890716641,-542.57,0.00027397,2]
[335147353,1723890716650,-501.64,0.00027397,2]
[335147354,1723890716660,-1010.89,0.00027397,2]
[335147355,1723890716670,-530.09,0.00027397,2]
[335147356,1723890716680,-605.21,0.00027397,2]
[335147357,1723890716690,-751.83,0.00027397,2]
[335147358,1723890716699,-500.0,0.00027397,2]
[335147359,1723890716709,-1556.4,0.00027397,2]
[335147360,1723890716719,-500.23,0.00027397,2]
[335147361,1723890716729,-752.59,0.00027397,2]
[335147362,1723890716738,-611.43,0.00027397,2]
[335147363,1723890716748,-500.0,0.00027397,2]
[335147364,1723890716757,-1406.266005,0.00027397,7]
[335147365,1723890716767,-1406.266005,0.00027397,7]
[335147366,1723890716779,-1406.266005,0.00027397,7]
[335147367,1723890716788,-1406.266006,0.00027397,7]
[335147368,1723890716798,-668.57,0.00027397,2]
[335147369,1723890716808,-639.9200917,0.00027397,2]
[335147370,1723890716817,-842.04,0.00027397,2]
[335147371,1723890716827,-794.65,0.00027397,2]
[335147372,1723890716837,-500.0,0.00027397,2]
[335147373,1723890716846,-533.77,0.00027397,2]
[335147374,1723890716855,-545.57,0.00027397,2]
[335147375,1723890716865,-588.4,0.00027397,2]
[335147376,1723890716874,-618.32,0.00027397,2]
[335147377,1723890716884,-500.28,0.00027397,2]
[335147378,1723890716893,-1215.121657,0.00027397,7]
[335147379,1723890716903,-1215.121656,0.00027397,7]
[335147380,1723890716912,-885.0,0.00027397,2]
[335147381,1723890716921,-864.62,0.00027397,2]
[335147382,1723890716931,-514.86,0.00027397,2]
[335147383,1723890716941,-553.37,0.00027397,2]
[335147384,1723890716951,-693.53,0.00027397,2]
[335147385,1723890716961,-619.18,0.00027397,2]
[335147386,1723890716970,-1400.99,0.00027397,2]
[335147387,1723890716981,-1038.37,0.00027397,2]
[335147388,1723890716990,-1018.27,0.00027397,2]
[335147389,1723890717000,-413.97220674,0.00027397,2]
[335147390,1723890717009,-517.68,0.00027397,2]
[335147391,1723890717020,-530.93,0.00027397,2]
[335147392,1723890717029,-655.89,0.00027397,2]
[335147393,1723890717038,-591.89,0.00027397,2]
[335147394,1723890717048,-500.0,0.00027397,2]
[335147395,1723890717060,-1232.8,0.00027397,2]
[335147396,1723890717070,-500.0,0.00027397,2]
[335147397,1723890717079,-543.94,0.00027397,2]
[335147398,1723890717089,-571.25,0.00027397,2]
[335147399,1723890717098,-503.76,0.00027397,2]
[335147400,1723890717107,-725.37,0.00027397,2]
[335147401,1723890717234,-269.19682356,0.00027397,2]
[335147402,1723890717244,-582.58,0.00027397,2]
[335147403,1723890717253,-739.32,0.00027397,2]
[335147404,1723890717263,-1438.68,0.00027397,2]
[335147405,1723890717273,-769.77,0.00027397,2]
[335147406,1723890717283,-2248.55,0.00027397,2]
[335147407,1723890717292,-657.64,0.00027397,2]
[335147408,1723890717301,-590.2,0.00027397,2]
[335147409,1723890717311,-788.03,0.00027397,2]
[335147410,1723890717321,-2904.2,0.00027397,2]
[335147411,1723890717331,-500.0,0.00027397,2]
[335147412,1723890717340,-509.61781346,0.00027397,2]
[335147413,1723890717350,-737.6,0.00027397,2]
[335147414,1723890717359,-1067.82,0.00027397,2]
[335147415,1723890717369,-22187.11,0.00027397,2]
[335147416,1723890717379,-6948.85,0.00027397,2]
[335147417,1723890717389,-668.08,0.00027397,2]
[335147418,1723890717399,-1369.92,0.00027397,2]
[335147419,1723890717408,-1067.8,0.00027397,2]
[335147420,1723890717418,-2952.04,0.00027397,2]
[335147421,1723890717427,-1761.64,0.00027397,2]
[335147422,1723890717437,-1088.19,0.00027397,2]
[335147423,1723890717447,-1664.5,0.00027397,2]
[335147424,1723890717456,-616.8,0.00027397,2]
[335147425,1723890717467,-869.36,0.00027397,2]
[335147426,1723890717477,-1108.77,0.00027397,2]
[335147427,1723890717487,-905.39,0.00027397,2]
[335147428,1723890717497,-513.68401359,0.00027397,2]
[335147429,1723890717507,-2520.02,0.00027397,2]
[335147430,1723890717517,-569.78,0.00027397,2]
[335147431,1723890717527,-3853.14,0.00027397,2]
[335147432,1723890717537,-2333.05,0.00027397,2]
[335147433,1723890717547,-679.93,0.00027397,2]
[335147434,1723890717556,-521.59,0.00027397,2]
[335147435,1723890717565,-2770.69,0.00027397,2]
[335147436,1723890717575,-692.79,0.00027397,2]
[335147437,1723890717585,-500.28,0.00027397,2]
[335147438,1723890717595,-1389.6,0.00027397,2]
[335147439,1723890717605,-4570.81,0.00027397,2]
[335147440,1723890717615,-151.0,0.00027397,7]
[335147441,1723890717625,-250.713032,0.00027397,7]
[335147442,1723890717635,-151.0,0.00027397,7]
[335147443,1723890717645,-151.0,0.00027397,5]
[335147444,1723890717655,-151.0,0.00027397,5]
[335147445,1723890717665,-678.901847,0.00027397,7]
[335147446,1723890717675,-678.901847,0.00027397,7]
[335147447,1723890717685,-151.0,0.00027397,7]
[335147448,1723890717695,-151.0,0.00027397,7]
[335147449,1723890717704,-678.901847,0.00027397,7]
[335147450,1723890717714,-678.901847,0.00027397,7]
[335147451,1723890717724,-186.917686,0.00027397,7]
[335147452,1723890717734,-151.0,0.00027397,7]
[335147453,1723890717743,-151.0,0.00027397,7]
[335147454,1723890717755,-182.375346,0.00027397,7]
[335147455,1723890717766,-152.137138,0.00027397,7]
[335147456,1723890717777,-271.364326,0.00027397,7]
[335147457,1723890717790,-151.0,0.00027397,7]
[335147458,1723890717802,-261.149498,0.00027397,7]
[335147459,1723890717812,-803.858624,0.00027397,7]
[335147460,1723890717822,-803.858624,0.00027397,7]
[335147461,1723890717833,-803.858624,0.00027397,7]
[335147462,1723890717842,-803.858624,0.00027397,7]
[335147463,1723890717852,-803.858624,0.00027397,7]
[335147464,1723890717861,-803.858624,0.00027397,7]
[335147465,1723890717871,-803.858624,0.00027397,7]
[335147466,1723890717881,-803.858624,0.00027397,7]
[335147467,1723890717891,-803.858624,0.00027397,7]
[335147468,1723890717900,-803.858624,0.00027397,7]
[335147469,1723890717911,-151.0,0.00027397,7]
[335147470,1723890717921,-151.0,0.00027397,7]
[335147471,1723890717930,-151.0,0.00027397,7]
[335147472,1723890717940,-151.0,0.00027397,7]
[335147473,1723890717949,-151.0,0.00027397,7]
[335147474,1723890717959,-151.0,0.00027397,7]
[335147475,1723890717969,-283.742541,0.00027397,7]
[335147476,1723890717980,-164.727457,0.00027397,7]
[335147477,1723890717992,-164.727457,0.00027397,7]
[335147478,1723890718003,-164.727457,0.00027397,7]
[335147479,1723890718016,-164.727457,0.00027397,7]
[335147480,1723890718027,-164.727457,0.00027397,7]
[335147481,1723890718040,-164.727457,0.00027397,7]
[335147482,1723890718050,-164.727457,0.00027397,7]
[335147483,1723890718065,-164.727457,0.00027397,7]
[335147484,1723890718076,-164.727457,0.00027397,7]
[335147485,1723890718086,-164.727457,0.00027397,7]
[335147486,1723890718097,-151.777433,0.00027397,7]
[335147487,1723890718110,-240.041279,0.00027397,7]
[335147488,1723890718121,-240.041279,0.00027397,7]
[335147489,1723890718132,-240.041279,0.00027397,7]
[335147490,1723890718144,-240.041279,0.00027397,7]
[335147491,1723890718155,-240.041279,0.00027397,7]
[335147492,1723890718167,-240.041279,0.00027397,7]
[335147493,1723890718178,-240.041279,0.00027397,7]
[335147494,1723890718190,-240.041279,0.00027397,7]
[335147495,1723890718202,-240.041279,0.00027397,7]
[335147496,1723890718215,-240.041279,0.00027397,7]
[335147497,1723890718226,-240.041279,0.00027397,7]
[335147498,1723890718235,-240.041279,0.00027397,7]
[335147499,1723890718246,-240.041279,0.00027397,7]
[335147500,1723890718258,-240.041279,0.00027397,7]
[335147501,1723890718271,-240.041279,0.00027397,7]
[335147502,1723890718282,-240.041279,0.00027397,7]
[335147503,1723890718294,-356.014522,0.00027397,7]
[335147504,1723890718306,-541.368268,0.00027397,7]
[335147505,1723890718316,-356.014522,0.00027397,7]
[335147506,1723890718328,-541.368268,0.00027397,7]
[335147507,1723890718340,-541.368268,0.00027397,7]
[335147508,1723890718350,-541.368268,0.00027397,7]
[335147509,1723890718361,-356.014522,0.00027397,7]
[335147510,1723890718372,-356.014522,0.00027397,7]
[335147511,1723890718382,-541.368268,0.00027397,7]
[335147512,1723890718393,-356.014522,0.00027397,7]
[335147513,1723890718404,-541.368268,0.00027397,7]
[335147514,1723890718416,-541.368268,0.00027397,7]
[335147515,1723890718427,-541.368268,0.00027397,7]
[335147516,1723890718437,-151.0,0.00027397,7]
[335147517,1723890718448,-151.0,0.00027397,7]
[335147518,1723890718462,-151.0,0.00027397,7]
[335147519,1723890718472,-356.014522,0.00027397,7]
[335147520,1723890718483,-151.0,0.00027397,7]
[335147521,1723890718495,-356.014522,0.00027397,7]
[335147522,1723890718505,-541.368268,0.00027397,7]
[335147523,1723890718517,-243.05376,0.00027397,7]
[335147524,1723890718528,-356.014522,0.00027397,7]
[335147525,1723890718539,-541.368268,0.00027397,7]
[335147526,1723890718549,-356.014522,0.00027397,7]
[335147527,1723890718558,-541.368268,0.00027397,7]
[335147528,1723890718568,-356.014522,0.00027397,7]
[335147529,1723890718577,-541.368268,0.00027397,7]
[335147530,1723890718587,-541.368268,0.00027397,7]
[335147531,1723890718600,-541.368268,0.00027397,7]
[335147532,1723890718611,-541.368268,0.00027397,7]
[335147533,1723890718623,-541.368268,0.00027397,7]
[335147534,1723890718633,-442.175006,0.00027397,7]
[335147535,1723890718645,-442.175006,0.00027397,7]
[335147536,1723890718656,-442.175006,0.00027397,7]
[335147537,1723890718666,-442.175006,0.00027397,7]
[335147538,1723890718677,-442.175006,0.00027397,7]
[335147539,1723890718689,-442.175006,0.00027397,7]
[335147540,1723890718701,-442.175006,0.00027397,7]
[335147541,1723890718711,-442.175006,0.00027397,7]
[335147542,1723890718721,-442.175006,0.00027397,7]
[335147543,1723890718731,-442.175006,0.00027397,7]
[335147544,1723890718741,-442.175006,0.00027397,7]
[335147545,1723890718751,-442.175006,0.00027397,7]
[335147546,1723890718761,-442.175006,0.00027397,7]
[335147547,1723890718772,-442.175006,0.00027397,7]
[335147548,1723890718783,-442.175006,0.00027397,7]
[335147549,1723890718792,-442.175006,0.00027397,7]
[335147550,1723890718802,-151.0,0.00027397,7]
[335147551,1723890718812,-151.0,0.00027397,7]
[335147552,1723890718821,-151.0,0.00027397,7]
[335147553,1723890718831,-151.0,0.00027397,7]
[335147554,1723890718841,-151.0,0.00027397,7]
[335147555,1723890718850,-151.0,0.00027397,7]
[335147556,1723890718860,-151.0,0.00027397,7]
[335147557,1723890718870,-151.0,0.00027397,7]
[335147558,1723890718880,-292.177888,0.00027397,7]
[335147559,1723890718890,-3882.025632,0.00027397,7]
[335147560,1723890718900,-3882.025632,0.00027397,7]
[335147561,1723890718910,-3882.025632,0.00027397,7]
[335147562,1723890718920,-3882.025632,0.00027397,7]
[335147563,1723890718930,-3882.025632,0.00027397,7]
[335147564,1723890718941,-3882.025632,0.00027397,7]
[335147565,1723890718951,-3882.025632,0.00027397,7]
[335147566,1723890718963,-3882.025632,0.00027397,7]
[335147567,1723890718974,-3882.025632,0.00027397,7]
[335147568,1723890718984,-3882.025632,0.00027397,7]
[335147569,1723890718995,-3882.025632,0.00027397,7]
[335147570,1723890719005,-3882.025632,0.00027397,7]
[335147571,1723890719015,-3882.025632,0.00027397,7]
[335147572,1723890719026,-3882.025632,0.00027397,7]
[335147573,1723890719036,-3882.025632,0.00027397,7]
[335147574,1723890719046,-3882.025632,0.00027397,7]
[335147575,1723890719058,-187.465228,0.00027397,7]
[335147576,1723890719069,-187.465228,0.00027397,7]
[335147577,1723890719079,-187.465228,0.00027397,7]
[335147578,1723890719089,-187.465228,0.00027397,7]
[335147579,1723890719099,-187.465228,0.00027397,7]
[335147580,1723890719109,-187.465228,0.00027397,7]
[335147581,1723890719118,-187.465228,0.00027397,7]
[335147582,1723890719128,-187.465228,0.00027397,7]
[335147583,1723890719138,-187.465228,0.00027397,7]
[335147584,1723890719149,-187.465228,0.00027397,7]
[335147585,1723890719159,-187.465228,0.00027397,7]
[335147586,1723890719169,-187.465228,0.00027397,7]
[335147587,1723890719179,-187.465228,0.00027397,7]
[335147588,1723890719189,-187.465228,0.00027397,7]
[335147589,1723890719199,-187.465228,0.00027397,7]
[335147590,1723890719209,-187.465228,0.00027397,7]
[335147591,1723890719221,-187.465228,0.00027397,7]
[335147592,1723890719231,-187.465228,0.00027397,7]
[335147593,1723890719242,-187.465228,0.00027397,7]
[335147594,1723890719253,-187.465231,0.00027397,7]
[335147595,1723890719265,-2087.10108,0.00027397,7]
[335147596,1723890719276,-2087.10108,0.00027397,7]
[335147597,1723890719286,-2087.10108,0.00027397,7]